bitfinex-derivatives/quotes_ETHF0:USTF0_20250803
["timestamp","ask_amount","ask_price","bid_price","bid_amount"]
[1754186101246,2.6846,3412.7,3412.6,2.1376]
[1754186101453,2.6846,3412.7,3412.6,3.4717]
[1754186102731,20.231,3412.9,3412.6,1.3959]
[1754186102943,20.231,3412.9,3412.5,0.5862]
[1754186102944,20.231,3412.9,3412.8,3.4092]
[1754186103438,3.5955,3413.5,3413.4,3.4092]
[1754186103645,26.26801867,3413.5,3413.4,3.4092]
[1754186103844,26.98991867,3413.5,3413.4,3.4092]
[1754186104246,26.117,3413.5,3413.4,3.4092]
[1754186104448,3.2078,3413.5,3413.4,3.4092]
[1754186105042,20.231,3413.6,3413.4,3.4092]
[1754186105240,21.1589,3413.6,3413.5,2.0825]
[1754186105448,22.1873,3413.6,3413.5,3.4092]
[1754186105654,0.3877,3413.6,3413.5,3.4092]
[1754186107337,0.3877,3413.6,3413.0,3.2078]
[1754186107338,4.1357,3413.9,3413.8,1.3267]
[1754186107535,23.4368,3414.3,3414.2,1.3267]
[1754186107739,23.4368,3414.3,3414.2,3.4092]
[1754186107945,25.3931,3414.3,3414.2,3.4092]
[1754186108149,26.115,3414.3,3414.2,3.4092]
[1754186108453,23.8245,3414.3,3414.2,3.4092]
[1754186108748,24.3647,3414.3,3414.2,3.4092]
[1754186109047,21.1569,3414.3,3414.2,3.4092]
[1754186109541,4.4699,3414.7,3414.6,1.3267]
[1754186109742,4.4699,3414.7,3414.6,3.4092]
[1754186109743,4.8576,3414.7,3414.6,3.4092]
[1754186110549,5.886,3414.7,3414.6,3.4092]
[1754186110745,2.6782,3414.7,3414.6,3.4092]
[1754186110940,2.6782,3414.7,3414.6,1.1959]
[1754186111144,3.2901,3414.2,3413.8,3.2078]
[1754186111336,3.2901,3414.0,3413.9,0.7148]
[1754186112251,3.2901,3413.7,3413.6,1.1959]
[1754186112550,3.2901,3413.7,3413.6,1.6837]
[1754186112750,3.2901,3413.7,3413.6,2.4648]
[1754186113252,2.6782,3413.7,3413.6,3.4092]
[1754186114552,0.3877,3413.7,3413.6,3.4092]
[1754186116151,20.224,3413.8,3413.7,3.99519]
[1754186117347,20.224,3413.8,3413.7,3.4092]
[1754186117646,20.6117,3413.8,3413.7,3.4092]
[1754186117951,0.8975,3413.6,3413.5,0.7148]
[1754186118139,3.2901,3413.6,3413.5,1.1959]
[1754186118340,3.2901,3413.6,3413.5,1.6837]
[1754186118655,3.2901,3413.6,3413.5,2.4648]
[1754186118845,3.2901,3413.6,3413.5,2.8226]
[1754186119145,2.6782,3413.6,3413.5,2.8226]
[1754186119349,0.3877,3413.6,3413.5,3.4092]
[1754186119540,2.6782,3413.6,3413.5,3.4092]
[1754186122150,2.6782,3413.6,3413.5,2.8226]
[1754186122357,3.2901,3413.6,3413.5,0.7148]
[1754186122852,3.2901,3413.6,3413.5,1.1959]
[1754186123048,3.2901,3413.6,3413.5,1.977]
[1754186123359,3.2901,3413.6,3413.5,2.4648]
[1754186124261,2.6782,3413.6,3413.5,3.4092]
[1754186125856,2.6782,3413.6,3413.5,2.8226]
[1754186126053,3.2901,3413.6,3413.5,2.8226]
[1754186126260,3.2901,3413.6,3413.5,2.4648]
[1754186129060,3.2901,3413.6,3413.5,1.6837]
[1754186129452,3.2901,3413.6,3413.5,2.4648]
[1754186130261,3.2901,3413.6,3413.5,2.8226]
[1754186130461,3.2901,3413.6,3413.5,3.4092]
[1754186131462,0.3877,3413.6,3413.5,3.4092]
[1754186131660,20.224,3413.8,3413.5,3.99522]
[1754186131852,20.224,3413.8,3413.6,2.0569]
[1754186132057,20.224,3413.8,3413.7,3.3888]
[1754186132557,1.8486,3413.8,3413.7,3.3888]
[1754186132762,3.2034,3413.8,3413.7,2.4495]
[1754186132964,3.2034,3413.8,3413.7,0.7673]
[1754186133364,3.2034,3413.8,3413.4,1.2896]
[1754186133365,2.6185,3413.5,3413.4,2.2368]
[1754186133758,2.6185,3413.5,3413.4,3.0041]
[1754186134159,2.6185,3413.5,3413.4,3.3888]
[1754186135258,3.2034,3413.5,3413.4,2.8342]
[1754186135965,6.4112,3413.5,3413.4,2.8342]
[1754186136158,1.3247,3413.2,3413.1,2.6215]
[1754186136358,2.6185,3413.2,3413.1,3.3888]
[1754186137164,2.6185,3413.2,3413.1,1.7145]
[1754186137357,3.2034,3413.2,3413.1,2.4495]
[1754186137758,3.2034,3413.2,3413.1,3.0041]
[1754186138463,0.5239,3413.1,3412.8,1.5023]
[1754186138658,0.8852,3412.9,3412.8,3.3888]
[1754186139053,2.6185,3413.4,3413.3,2.8342]
[1754186139360,2.6185,3413.4,3413.3,3.3888]
[1754186140259,0.3613,3413.4,3413.3,3.3888]
[1754186140461,3.2078,3413.5,3413.3,1.3319]
[1754186140664,4.093,3413.5,3413.4,3.3888]
[1754186140868,5.8263,3413.5,3413.4,2.8342]
[1754186141063,6.4112,3413.5,3413.4,2.8342]
[1754186141462,6.4112,3413.5,3413.4,3.3888]
[1754186141864,5.8263,3413.5,3413.4,3.3888]
[1754186143270,5.11854,3413.5,3413.1,2.0569]
[1754186143480,2.6185,3413.1,3413.0,3.3888]
[1754186145465,1.3709,3413.1,3413.0,3.3888]
[1754186145765,1.2938,3413.3,3413.0,3.3888]
[1754186145973,3.2078,3413.5,3413.4,1.3319]
[1754186146166,23.4248,3413.5,3413.4,3.3888]
[1754186146558,3.2078,3413.5,3413.4,3.3888]
[1754186147267,20.217,3413.8,3413.7,1.3319]
[1754186147464,0.87394475,3413.8,3413.7,3.3888]
[1754186147775,3.2078,3414.1,3413.8,0.58598]
[1754186147979,4.093,3414.1,3414.0,3.3888]
[1754186148270,4.96692405,3414.1,3414.0,3.3888]
[1754186148468,6.70022405,3414.1,3414.0,3.3888]
[1754186148865,6.70022405,3414.1,3414.0,3.97474]
[1754186149065,4.5787,3414.1,3414.0,3.3888]
[1754186149876,5.0564,3414.1,3414.0,3.3888]
[1754186150074,5.8263,3414.1,3414.0,3.3888]
[1754186151275,6.4112,3414.1,3414.0,0.7673]
[1754186151572,2.6185,3413.7,3413.6,3.3888]
[1754186151779,1.3247,3413.5,3413.4,1.7145]
[1754186152073,2.6185,3413.5,3413.4,2.4495]
[1754186152580,2.6185,3413.5,3413.4,3.3888]
[1754186153278,0.3613,3413.5,3413.4,3.3888]
[1754186155377,2.6185,3413.5,3413.4,3.3888]
[1754186157674,0.847,3413.2,3413.1,0.7673]
[1754186157877,3.2034,3413.2,3413.1,0.7673]
[1754186158068,3.2034,3413.2,3413.1,1.2435]
[1754186158371,3.2034,3413.2,3413.1,2.4495]
[1754186158572,3.2034,3413.2,3413.1,3.3888]
[1754186158776,2.6185,3413.2,3413.1,3.3888]
[1754186159275,1.8486,3413.2,3413.1,3.3888]
[1754186159476,20.212,3413.3,3413.1,1.3319]
[1754186159676,21.0972,3413.3,3413.2,3.3888]
[1754186159872,21.0972,3413.3,3413.2,2.6215]
[1754186160078,21.0972,3413.3,3413.2,3.3888]
[1754186160278,22.0606,3413.3,3413.2,3.3888]
[1754186160478,22.8305,3413.3,3413.2,3.3888]
[1754186164169,22.8305,3413.3,3413.2,2.8342]
[1754186164370,1.3438,3413.0,3412.9,1.2343]
[1754186164576,3.1715,3413.0,3412.9,1.2343]
[1754186164776,3.1715,3413.0,3412.9,2.4029]
[1754186165384,3.1715,3413.0,3412.9,3.3225]
[1754186165884,2.6157,3413.0,3412.9,3.3225]
[1754186167572,20.21,3413.1,3412.9,3.90862]
[1754186167769,20.21,3413.1,3412.9,1.88112]
[1754186167969,21.1235,3413.1,3413.0,3.3225]
[1754186170670,22.8257,3413.1,3413.0,3.3225]
[1754186172084,23.3815,3413.1,3413.0,2.7637]
[1754186173486,22.8257,3413.1,3413.0,3.3225]
[1754186176582,23.3815,3413.1,3413.0,2.7637]
[1754186177184,22.8257,3413.1,3413.0,3.3225]
[1754186177387,20.21,3413.1,3413.0,3.3225]
[1754186177788,0.9135,3413.3,3413.2,3.3225]
[1754186177993,21.1195,3413.3,3413.2,3.3225]
[1754186178292,22.3428,3413.3,3413.2,3.3225]
[1754186178889,22.8217,3413.3,3413.2,3.3225]
[1754186179090,3.7636,3413.7,3412.6,3.2078]
[1754186179091,5.8235,3413.7,3413.6,3.3225]
[1754186179394,26.9020734,3413.7,3413.6,3.3225]
[1754186179788,27.4578734,3413.7,3413.6,3.3225]
[1754186180287,27.4568734,3413.7,3413.6,3.3225]
[1754186182793,26.9010734,3413.7,3413.6,3.3225]
[1754186183294,27.4568734,3413.7,3413.6,3.3225]
[1754186186096,27.4568734,3413.7,3413.6,2.7637]
[1754186187094,27.4568734,3413.7,3413.6,2.4029]
[1754186187490,27.4568734,3413.7,3413.6,2.9617]
[1754186187890,27.4568734,3413.7,3413.6,3.3225]
[1754186188498,27.4568734,3413.7,3413.6,1.2343]
[1754186188800,27.4568734,3413.7,3413.6,1.9471]
[1754186189197,24.2490734,3413.7,3413.6,1.9471]
[1754186189498,27.4568734,3413.7,3413.6,2.9617]
[1754186191298,27.4568734,3413.7,3413.6,2.4029]
[1754186192598,27.4568734,3413.7,3413.6,2.9256]
[1754186193196,26.1643734,3413.7,3413.6,3.2697]
[1754186193601,0.8725734,3413.7,3413.6,3.2697]
[1754186193797,21.0705734,3413.7,3413.6,3.2697]
[1754186194398,20.198,3413.7,3413.6,3.2697]
[1754186197191,3.2078,3414.1,3414.0,1.2727]
[1754186197390,23.4028,3414.1,3414.0,3.2469]
[1754186197896,3.2078,3414.1,3414.0,3.2469]
[1754186198099,3.2078,3414.5,3414.4,1.85857]
[1754186198302,4.08174224,3414.5,3414.4,3.2469]
[1754186199301,3.2078,3414.5,3414.4,3.2469]
[1754186199497,23.3998,3414.5,3414.4,3.2469]
[1754186200904,20.192,3414.5,3414.4,3.2469]
[1754186204006,20.188,3414.5,3414.4,3.2469]
[1754186205204,20.187,3414.5,3414.4,1.2727]
[1754186205803,20.187,3414.5,3414.4,3.2469]
[1754186206199,1.9649,3414.7,3414.4,3.2469]
[1754186206406,22.7625,3414.6,3414.5,3.2469]
[1754186207105,23.4438,3414.6,3414.5,3.2469]
[1754186209808,0.8423,3414.6,3414.5,3.2469]
[1754186210002,2.5775,3415.2,3415.1,1.2727]
[1754186210197,23.4408,3415.2,3415.1,3.2469]
[1754186211506,23.4408,3415.2,3415.1,2.5374]
[1754186214206,1.9752,3414.9,3414.8,6.4547]
[1754186214401,23.4378,3414.9,3414.8,6.4547]
[1754186214597,23.4378,3414.9,3414.8,7.04049]
[1754186215405,23.4378,3414.9,3414.8,3.2078]
[1754186215605,23.4378,3414.9,3414.6,0.58583]
[1754186215606,1.2939,3414.7,3414.6,1.32783]
[1754186215809,23.4368,3414.7,3414.6,1.79963]
[1754186216111,23.4368,3414.7,3414.6,3.83273]
[1754186218412,22.7555,3414.7,3414.6,3.83273]
[1754186218911,23.4368,3414.7,3414.6,3.83273]
[1754186219807,22.7555,3414.7,3414.6,3.83273]
[1754186221312,23.4368,3414.7,3414.6,3.83273]
[1754186224120,1.2597,3414.4,3414.3,3.6992]
[1754186224311,3.1813,3414.4,3414.3,5.7009]
[1754186224508,3.1813,3414.4,3414.3,6.5394]
[1754186225115,3.1813,3414.4,3414.2,0.5859]
[1754186225116,1.2597,3414.4,3414.0,0.5453]
[1754186225414,1.2597,3414.1,3413.9,3.79376]
[1754186225612,3.1813,3414.0,3413.9,4.51726]
[1754186226013,3.1813,3414.0,3413.9,5.00866]
[1754186226317,3.1813,3414.0,3413.9,6.39246]
[1754186226519,2.4457,3414.0,3413.9,7.12536]
[1754186227310,3.2078,3414.5,3413.9,7.12536]
[1754186227311,3.1813,3414.5,3414.4,3.3316]
[1754186227515,23.3513,3414.5,3414.4,3.3316]
[1754186228121,0.8587,3414.5,3414.4,2.0534]
[1754186228318,20.17,3414.6,3414.5,3.91746]
[1754186228514,2.4457,3414.8,3414.7,1.91571]
[1754186228711,22.6147,3414.8,3414.7,1.91571]
[1754186228914,23.3503,3414.8,3414.7,1.91571]
[1754186229113,23.3503,3414.8,3414.7,3.91741]
[1754186230018,1.9216,3414.7,3414.3,3.2078]
[1754186230221,20.169,3414.6,3414.5,2.7863]
[1754186230519,20.169,3414.6,3414.5,3.3316]
[1754186230916,21.4287,3414.6,3414.5,3.3316]
[1754186231116,22.6147,3414.6,3414.5,3.3316]
[1754186233020,23.3503,3414.6,3414.5,3.3316]
[1754186233225,23.3503,3414.6,3414.5,1.2149]
[1754186233623,21.4287,3414.6,3414.3,3.2078]
[1754186233918,3.1813,3414.4,3414.3,1.2149]
[1754186234427,3.1813,3414.3,3414.2,0.58589]
[1754186234721,3.1813,3414.3,3414.2,1.80079]
[1754186235021,3.1813,3414.3,3414.2,3.07899]
[1754186235208,3.1813,3414.3,3414.2,3.91749]
[1754186235619,20.167,3414.4,3414.3,2.0017]
[1754186235816,3.1813,3414.8,3414.7,2.63922]
[1754186236014,23.3473,3414.8,3414.7,3.91742]
[1754186236321,23.3473,3414.8,3414.7,3.3316]
[1754186236524,23.3473,3414.8,3414.7,2.5987]
[1754186236821,24.22129568,3414.8,3414.5,0.7329]
[1754186237016,1.2597,3414.6,3414.5,1.9478]
[1754186237217,3.1813,3414.6,3414.5,2.4931]
[1754186237521,3.1813,3414.6,3414.5,3.3316]
[1754186237917,3.1813,3414.6,3414.5,2.5987]
[1754186238117,3.1813,3414.5,3414.3,0.58588]
[1754186238317,3.1813,3414.4,3414.3,0.58588]
[1754186238621,3.1813,3414.4,3414.3,1.80078]
[1754186239224,3.1813,3414.4,3414.3,2.34608]
[1754186239416,3.1813,3414.4,3414.3,3.91748]
[1754186241619,1.2597,3414.4,3414.3,3.91748]
[1754186241925,1.186,3414.6,3414.5,3.91745]
[1754186242222,20.8478,3414.6,3414.5,3.91745]
[1754186242526,22.6097,3414.6,3414.5,3.91745]
[1754186243213,21.4237,3414.6,3414.5,3.91745]
[1754186243620,2.4457,3414.8,3414.7,3.91742]
[1754186243824,23.3453,3414.8,3414.7,3.91742]
[1754186246628,23.3453,3414.8,3414.7,3.3316]
[1754186249128,4.3938,3415.4,3414.7,3.3316]
[1754186249323,24.21612114,3415.3,3415.2,3.3316]
[1754186249630,23.48052114,3415.3,3415.2,3.3316]
[1754186249828,3.2078,3415.4,3415.3,1.91562]
[1754186250033,3.2078,3415.4,3415.3,3.91732]
[1754186250329,20.6612,3415.5,3415.4,2.0017]
[1754186250518,20.159,3415.5,3415.4,3.3316]
[1754186250918,2.4457,3415.7,3415.6,3.3316]
[1754186251128,22.6047,3415.7,3415.6,3.3316]
[1754186251524,2.4457,3415.7,3415.6,3.3316]
[1754186251721,22.6037,3415.7,3415.6,3.3316]
[1754186252129,2.4457,3415.7,3415.6,3.3316]
[1754186252525,0.6718,3416.1,3415.7,0.58565]
[1754186252733,1.2555,3416.1,3416.0,3.1863]
[1754186253031,22.47132925,3416.1,3416.0,3.1863]
[1754186253226,24.36972925,3416.1,3416.0,3.1863]
[1754186253425,3.33836291,3416.1,3416.0,3.1863]
[1754186253631,23.49536291,3416.1,3416.0,3.1863]
[1754186254130,23.49327323,3416.1,3416.0,2.5017]
[1754186254430,3.2078,3416.4,3416.3,1.2842]
[1754186254633,26.00505717,3416.4,3416.3,3.1863]
[1754186255135,5.85005717,3416.4,3416.3,3.1863]
[1754186255431,25.47445717,3416.4,3416.3,3.1863]
[1754186255934,26.00505717,3416.4,3416.3,3.1863]
[1754186256633,24.80265717,3416.4,3416.3,3.1863]
[1754186256834,24.6183,3416.4,3416.3,3.1863]
[1754186257230,0.696,3416.6,3416.4,0.58553]
[1754186257424,2.4579,3416.6,3416.5,3.1863]
[1754186257734,1.2555,3416.6,3416.5,4.4458662]
[1754186257933,0.7777,3416.6,3416.5,4.4458662]
[1754186258135,23.3588,3416.9,3416.8,0.4732]
[1754186258429,25.8167,3416.9,3416.8,3.1863]
[1754186258630,22.6089,3416.9,3416.8,3.1863]
[1754186259331,1.2555,3417.3,3417.2,3.1863]
[1754186259534,22.6059,3417.4,3417.3,3.77168]
[1754186259737,23.3019,3417.4,3417.3,3.1863]
[1754186260040,0.7777,3417.5,3417.4,3.77166]
[1754186260239,1.2024,3417.7,3417.4,3.77166]
[1754186260531,1.0,3418.0,3417.9,3.77157]
[1754186260937,1.0,3418.0,3417.9,5.0311362]
[1754186261440,1.0,3418.0,3417.9,8.2389362]
[1754186262234,1.0,3418.0,3417.9,7.6536662]
[1754186263032,2.2555,3418.0,3417.9,7.6536662]
[1754186263344,4.1539,3418.0,3417.9,3.1863]
[1754186266538,2.3397,3418.0,3417.9,3.1863]
[1754186266842,1.0,3418.0,3417.9,3.1863]
[1754186271951,2.9273,3418.0,3417.9,3.1863]
[1754186272149,1.0,3418.0,3417.9,3.1863]
[1754186273350,2.9273,3418.0,3417.9,3.1863]
[1754186273550,3.4579,3418.0,3417.9,3.1863]
[1754186274052,3.4579,3418.0,3417.9,6.3941]
[1754186275051,4.1539,3418.0,3417.9,6.3941]
[1754186280357,1.0,3418.0,3417.9,5.1658]
[1754186280546,3.4821,3418.0,3417.9,5.8504]
[1754186280742,3.4821,3418.0,3417.4,5.7203]
[1754186280743,1.2555,3417.5,3417.4,5.7203]
[1754186280963,3.1539,3417.5,3417.4,5.7203]
[1754186281465,3.1539,3417.5,3417.4,6.3941]
[1754186281652,1.0,3418.0,3417.4,5.1099]
[1754186281856,4.1431,3418.0,3417.9,3.1461]
[1754186283365,4.1431,3418.0,3417.9,0.4704]
[1754186283668,4.1431,3418.0,3417.4,3.2078]
[1754186283669,3.1431,3417.5,3417.4,3.2078]
[1754186283856,1.8749,3417.4,3417.0,3.2078]
[1754186284061,3.1431,3417.1,3417.0,3.2078]
[1754186284261,3.1431,3417.1,3417.0,3.6782]
[1754186284468,3.1431,3417.1,3417.0,5.6941]
[1754186285161,1.2682,3417.2,3417.1,3.1461]
[1754186285363,3.1431,3417.2,3417.1,3.1461]
[1754186285666,1.2004,3417.5,3417.1,3.1461]
[1754186285968,1.9427,3417.4,3417.3,3.1461]
[1754186286156,1.9427,3417.4,3417.3,3.73146]
[1754186286363,1.2682,3417.4,3417.3,3.73146]
[1754186286564,4.01379884,3417.4,3417.3,3.73146]
[1754186286863,4.01379884,3417.4,3417.0,3.2078]
[1754186287062,3.1431,3417.1,3417.0,3.2078]
[1754186287264,3.1431,3417.1,3417.0,6.3539]
[1754186287565,4.01443791,3417.1,3417.0,6.3539]
[1754186287765,4.01443791,3417.1,3417.0,5.1808]
[1754186288166,4.01443791,3417.1,3417.0,4.0326]
[1754186288369,4.01443791,3417.1,3417.0,6.3539]
[1754186288567,3.33993791,3417.1,3417.0,6.3539]
[1754186288767,0.87133791,3417.1,3417.0,6.3539]
[1754186290373,2.81623791,3417.1,3417.0,6.3539]
[1754186290572,3.33993791,3417.1,3417.0,6.3539]
[1754186291276,4.01443791,3417.1,3417.0,3.2078]
[1754186291474,3.1431,3417.1,3417.0,3.2078]
[1754186292074,4.01494734,3417.1,3417.0,3.2078]
[1754186292374,3.1431,3417.1,3417.0,3.2078]
[1754186292773,4.01485011,3417.1,3417.0,3.2078]
[1754186294267,3.1431,3417.1,3417.0,3.2078]
[1754186294473,3.1431,3416.6,3416.5,3.2078]
[1754186296476,4.01419783,3416.6,3416.5,3.2078]
[1754186297775,1.2682,3416.3,3416.2,1.05597]
[1754186297975,3.1431,3416.3,3416.2,2.55857]
[1754186298670,3.1431,3416.3,3416.2,3.73167]
[1754186301274,1.2682,3416.0,3415.9,4.4816]
[1754186301470,2.4686,3416.0,3415.9,6.9395]
[1754186301781,1.2682,3416.0,3415.9,6.9395]
[1754186303474,3.1431,3416.0,3415.9,5.7664]
[1754186304180,3.1431,3416.0,3415.9,6.9395]
[1754186306277,3.1431,3416.0,3415.9,6.3539]
[1754186309182,2.4686,3416.0,3415.9,6.3539]
[1754186311076,0.7934,3416.0,3415.9,6.3539]
[1754186311583,1.4853,3416.0,3415.9,6.3539]
[1754186311783,2.472,3416.0,3415.9,6.3539]
[1754186312289,1.2038,3416.6,3416.0,0.5856]
[1754186312490,3.1019,3416.5,3416.4,3.0429]
[1754186313090,2.4252,3416.5,3416.4,3.0429]
[1754186313288,3.1019,3416.5,3416.4,3.0429]
[1754186314187,0.7616,3416.5,3416.4,3.0429]
[1754186314385,1.2735,3416.5,3416.4,3.0429]
[1754186314702,3.1019,3416.5,3416.4,3.0429]
[1754186320192,3.68746,3416.3,3415.9,1.3395]
[1754186320398,1.2214,3416.1,3416.0,1.1178]
[1754186320590,3.1019,3416.1,3416.0,1.6373]
[1754186320795,3.1019,3416.1,3416.0,3.0429]
[1754186325292,2.4252,3416.1,3416.0,3.0429]
[1754186326096,5.7978,3416.6,3416.5,1.874]
[1754186326298,7.25714842,3416.6,3416.3,1.1689]
[1754186326493,2.59,3416.4,3416.3,2.65525]
[1754186326702,3.1019,3416.4,3416.3,3.62845]
[1754186327197,2.4252,3416.4,3416.3,3.62845]
[1754186328098,3.2078,3416.6,3416.0,3.2078]
[1754186328099,6.3097,3417.0,3416.9,1.1839]
[1754186328298,7.18376403,3417.0,3416.9,0.4277]
[1754186328596,1.2214,3416.8,3416.7,3.0429]
[1754186328801,3.97596403,3416.8,3416.7,3.0429]
[1754186330200,3.97596403,3416.8,3416.3,0.58553]
[1754186330201,1.2214,3416.4,3416.3,1.01323]
[1754186330402,1.2214,3416.4,3416.3,3.62843]
[1754186330592,3.1019,3416.4,3416.3,3.62843]
[1754186330792,3.2078,3417.0,3416.5,0.5855]
[1754186330992,2.77189715,3416.9,3416.8,3.0429]
[1754186331399,0.87379715,3416.9,3416.8,3.0429]
[1754186332102,1.56569715,3416.9,3416.8,3.0429]
[1754186332400,5.1059,3417.5,3417.4,1.1839]
[1754186332605,5.97944862,3417.5,3417.4,3.0429]
[1754186332999,7.18324862,3417.5,3417.4,3.0429]
[1754186335107,3.97544862,3417.5,3417.4,3.0429]
[1754186335308,3.1019,3417.5,3417.4,3.0429]
[1754186337907,3.1019,3417.5,3417.1,0.58541]
[1754186337908,1.2214,3417.0,3416.9,3.62833]
[1754186338103,2.4252,3417.0,3416.9,3.62833]
[1754186340101,1.1886,3417.2,3416.9,3.62833]
[1754186340418,2.4252,3417.4,3417.3,3.0429]
[1754186340708,1.2214,3417.4,3417.3,3.0429]
[1754186341302,3.1019,3417.4,3417.3,3.0429]
[1754186342309,1.834,3417.3,3417.0,1.37683]
[1754186342608,3.0414,3417.1,3417.0,2.46133]
[1754186342909,3.0414,3417.1,3417.0,3.61443]
[1754186343304,3.0414,3417.1,3417.0,3.029]
[1754186343601,3.0414,3417.1,3416.8,3.2078]
[1754186343914,3.0414,3416.9,3416.8,3.029]
[1754186345708,1.2074,3416.9,3416.7,1.7924]
[1754186346012,1.2074,3416.9,3416.8,3.029]
[1754186346306,3.0414,3416.9,3416.8,3.029]
[1754186353208,3.0414,3417.2,3417.1,1.82201]
[1754186353412,3.0414,3417.2,3417.1,3.029]
[1754186356222,3.91441684,3417.2,3417.1,3.029]
[1754186361419,3.26211684,3417.2,3417.1,3.029]
[1754186362125,3.91441684,3417.2,3417.1,3.029]
[1754186366425,1.2074,3416.6,3416.5,3.029]
[1754186366728,3.0414,3416.6,3416.5,3.029]
[1754186366922,3.0414,3416.6,3416.4,3.79333]
[1754186367117,3.0414,3416.6,3416.5,3.029]
[1754186367328,3.0414,3416.5,3416.4,3.2078]
[1754186368438,3.91509071,3416.5,3416.4,3.2078]
[1754186368626,3.91509071,3416.5,3416.1,0.4757]
[1754186368627,2.66661071,3416.5,3416.1,0.4757]
[1754186368931,3.0414,3416.2,3416.0,3.2078]
[1754186369129,3.0414,3416.2,3416.1,0.4452]
[1754186369331,3.0414,3416.2,3416.1,1.0845]
[1754186369527,3.0414,3416.2,3416.1,1.5602]
[1754186369834,3.0414,3416.2,3416.1,3.029]
[1754186370025,3.0414,3416.2,3416.1,0.4452]
[1754186370234,3.0414,3416.2,3416.1,1.0845]
[1754186370430,21.3154,3416.2,3416.0,3.2078]
[1754186370734,1.2074,3416.1,3416.0,3.029]
[1754186371133,3.0414,3416.1,3416.0,3.029]
[1754186371342,3.0414,3416.1,3416.0,0.4452]
[1754186371737,0.8567,3415.8,3415.7,2.6424]
[1754186371942,2.8932,3415.8,3415.7,2.9649]
[1754186372840,2.8932,3415.8,3415.7,2.4814]
[1754186373039,2.2805,3415.8,3415.7,2.9649]
[1754186373834,2.8932,3415.8,3415.7,2.9649]
[1754186375944,2.2805,3415.8,3415.7,2.9649]
[1754186377041,1.1716,3415.8,3415.7,2.9649]
[1754186377438,2.8932,3415.8,3415.6,3.2078]
[1754186377638,2.8932,3415.7,3415.6,1.3877]
[1754186377840,2.8932,3415.7,3415.6,1.8159]
[1754186378247,2.8932,3415.7,3415.6,2.9649]
[1754186381032,2.8932,3415.7,3415.6,1.8997]
[1754186381231,2.8932,3415.7,3415.6,2.347]
[1754186381441,2.8932,3415.7,3415.6,2.9649]
[1754186383647,2.8932,3415.7,3415.6,6.1727]
[1754186387047,1.1716,3415.4,3415.3,2.347]
[1754186387251,2.8932,3415.4,3415.3,2.9649]
[1754186388354,2.8932,3415.4,3414.9,0.6655]
[1754186388355,3.47892,3415.4,3414.9,0.6655]
[1754186388648,1.1716,3415.0,3414.9,1.0937]
[1754186389239,2.8932,3415.0,3414.9,2.6424]
[1754186389846,1.7216,3414.9,3414.5,1.149]
[1754186390042,2.8932,3414.6,3414.5,2.9649]
[1754186391141,2.8932,3414.6,3414.4,3.79366]
[1754186391142,1.7216,3414.6,3414.4,3.2078]
[1754186391355,2.8932,3414.1,3414.0,5.0713]
[1754186391550,2.2475,3414.1,3414.0,5.0713]
[1754186391752,2.8932,3414.1,3414.0,6.1727]
[1754186392646,1.1716,3414.1,3413.7,0.58599]
[1754186392949,1.1716,3414.1,3413.8,1.1014]
[1754186392950,2.8932,3414.0,3413.8,1.1014]
[1754186393154,2.8932,3413.8,3413.7,1.0937]
[1754186393845,1.1716,3413.6,3413.5,3.2078]
[1754186394056,2.8932,3413.6,3413.5,5.5548]
[1754186394254,2.8932,3413.6,3413.5,6.1727]
[1754186394454,21.2836,3414.1,3414.0,1.8159]
[1754186394651,23.0052,3414.1,3414.0,2.9649]
[1754186396052,23.0052,3414.1,3414.0,0.4282]
[1754186396656,21.2836,3414.1,3413.8,1.2834]
[1754186396952,2.8932,3413.9,3413.8,2.2994]
[1754186397453,2.8932,3413.9,3413.8,2.9649]
[1754186399355,2.2805,3413.9,3413.8,2.9649]
[1754186399551,2.8932,3413.8,3413.7,0.6655]
[1754186399757,2.8932,3413.8,3413.7,2.9649]
[1754186400159,2.2805,3413.8,3413.7,2.9649]
[1754186400453,1.1716,3413.6,3413.5,3.2078]
[1754186400658,21.87262,3413.6,3413.3,0.6655]
[1754186400859,21.2866,3413.6,3413.3,0.6655]
[1754186401060,2.8932,3413.4,3413.3,2.9649]
[1754186401653,1.8546,3413.8,3413.7,0.7279]
[1754186401857,22.3956,3413.8,3413.7,2.8514]
[1754186402263,4.3556,3414.0,3413.9,1.1552]
[1754186402461,24.4706,3414.0,3413.9,2.8514]
[1754186402659,1.1328,3414.5,3414.0,0.58595]
[1754186402956,2.8936,3414.5,3414.4,1.5094]
[1754186403158,2.2806,3414.5,3414.4,2.8514]
[1754186403455,22.3976,3414.5,3414.4,2.8514]
[1754186403655,23.0106,3414.5,3414.4,2.8514]
[1754186404356,23.0106,3414.5,3414.4,2.2373]
[1754186404560,23.0106,3414.5,3414.4,1.7708]
[1754186404755,23.0106,3414.5,3414.4,2.8514]
[1754186404962,20.117,3414.5,3414.4,2.8514]
[1754186405164,3.9388,3415.0,3414.9,2.2373]
[1754186405364,23.3238,3415.0,3414.9,2.8514]
[1754186405566,24.0548,3415.0,3414.9,2.8514]
[1754186405755,24.4716,3415.0,3414.9,2.8514]
[1754186406064,25.1191,3415.0,3414.9,2.8514]
[1754186406264,3.2078,3415.0,3414.9,2.8514]